fUSD/lending_fUSD_20240408
["ID","MTS","AMOUNT","RATE_DAILY","PERIOD"]
[321901846,1712601040013,-550.28,0.00021142,2]
[321901847,1712601040022,-500.0,0.00021158,2]
[321901848,1712601040032,-500.0,0.0002131,2]
[321901849,1712601040042,-2029.28256244,0.00021343,2]
[321901850,1712601040066,-2863.31743756,0.00021343,2]
[321901851,1712601040075,-200.0,0.00021445,2]
[321901852,1712601040085,-1656.21,0.00021458,2]
[321901853,1712601040094,-1390.21,0.00021458,2]
[321901854,1712601040103,-1832.40719094,0.00021459,2]
[321901855,1712601040113,-1053.70087748,0.00021459,2]
[321901856,1712601040122,-200.0,0.00021463,2]
[321901857,1712601040131,-23900.0,0.00021487,2]
[321901858,1712601040140,-4223.05,0.00021507,2]
[321901859,1712601040150,-1826.31,0.0002152,2]
[321901860,1712601040162,-500.0,0.00021537,2]
[321901861,1712601040171,-500.0,0.00021537,2]
[321901862,1712601040184,-490.02085621,0.00021537,2]
[321901863,1712601040194,-500.0,0.00021537,2]
[321901864,1712601040204,-490.43303426,0.00021537,2]
[321901865,1712601040214,-500.0,0.00021537,2]
[321901866,1712601040223,-189.71075235,0.00021537,2]
[321901867,1712601040232,-500.0,0.00021537,2]
[321901868,1712601040241,-48639.12,0.00021538,2]
[321901869,1712601040250,-250.0,0.00021559,2]
[321901871,1712601040260,-507.32,0.00021592,2]
[321901872,1712601040270,-228.08,0.00021619,2]
[321901874,1712601040279,-224.7,0.00021632,2]
[321901877,1712601040289,-500.0,0.00021639,2]
[321901879,1712601040298,-228.08,0.00021678,2]
[321901880,1712601040307,-3077.21,0.00021709,2]
[321901883,1712601040317,-228.08,0.00021737,2]
[321901885,1712601040326,-228.08,0.00021797,2]
[321901886,1712601040336,-1000.0,0.00021807,2]
[321901888,1712601040345,-200.0,0.00021819,2]
[321901889,1712601040355,-157.84390401,0.00021835,2]
[321901890,1712601040366,-228.08,0.00021856,2]
[321901891,1712601040375,-228.08,0.00021915,2]
[321901892,1712601040384,-250.0,0.00021918,2]
[321901893,1712601040393,-228.08,0.00021975,2]
[321901894,1712601040402,-783.43698561,0.00022,2]
[321901895,1712601040411,-228.08,0.00022034,2]
[321901896,1712601040420,-635.8,0.00022047,2]
[321901897,1712601040430,-228.08,0.00022093,2]
[321901898,1712601040439,-228.08,0.00022152,2]
[321901899,1712601040448,-228.08,0.00022212,2]
[321901900,1712601040457,-228.08,0.00022271,2]
[321901901,1712601040467,-1832.4071909,0.0002229,2]
[321901902,1712601040476,-1053.70087745,0.0002229,2]
[321901903,1712601040486,-228.08,0.0002233,2]
[321901904,1712601040495,-228.08,0.0002239,2]
[321901905,1712601040504,-228.08,0.00022449,2]
[321901906,1712601040513,-228.08,0.00022508,2]
[321901907,1712601040523,-228.08,0.00022568,2]
[321901908,1712601040532,-157.84390401,0.00022586,2]
[321901909,1712601040541,-228.08,0.00022627,2]
[321901910,1712601040551,-228.08,0.00022686,2]
[321901911,1712601040560,-228.08,0.00022745,2]
[321901912,1712601040569,-836.34,0.00022955,2]
[321901913,1712601040582,-836.34,0.00022961,2]
[321901914,1712601040598,-836.34,0.00022967,2]
[321901915,1712601040607,-836.34,0.00022973,2]
[321901916,1712601040618,-836.34,0.00022979,2]
[321901917,1712601040628,-836.34,0.00022985,2]
[321901918,1712601040638,-836.34,0.00022991,2]
[321901920,1712601040648,-836.34,0.00022998,2]
[321901921,1712601040666,-836.34,0.00023004,2]
[321901922,1712601040675,-836.34,0.0002301,2]
[321901923,1712601040685,-800.0,0.00023013,2]
[321901924,1712601040695,-836.34,0.00023016,2]
[321901925,1712601040705,-836.34,0.00023022,2]
[321901926,1712601040716,-836.34,0.00023028,2]
[321901927,1712601040725,-836.34,0.00023034,2]
[321901928,1712601040735,-169.53423243,0.00023039,2]
[321901929,1712601040744,-836.34,0.0002304,2]
[321901930,1712601040754,-836.34,0.00023046,2]
[321901931,1712601040763,-836.34,0.00023052,2]
[321901932,1712601040772,-836.34,0.00023058,2]
[321901933,1712601040782,-836.34,0.00023064,2]
[321901934,1712601040792,-836.34,0.0002307,2]
[321901935,1712601040801,-203.0,0.00023103,2]
[321901936,1712601040811,-189.02724929,0.00023105,2]
[321901937,1712601040820,-1832.4071909,0.00023122,2]
[321901938,1712601040831,-1053.70087745,0.00023122,2]
[321901939,1712601040841,-234.37434674,0.00023147,2]
[321901940,1712601040851,-151.27666646,0.00023218,2]
[321901941,1712601040860,-151.27666646,0.00023239,2]
[321901942,1712601040870,-152.42546696,0.00023246,2]
[321901943,1712601040879,-169.53423243,0.00023272,2]
[321901944,1712601040889,-169.53423243,0.00023308,2]
[321901945,1712601040899,-157.84390401,0.00023337,2]
[321901946,1712601040910,-234.37434674,0.00023391,2]
[321901947,1712601040919,-167.0,0.00023437,2]
[321901948,1712601040929,-150.54794341,0.00023454,2]
[321901949,1712601040939,-169.53423243,0.00023489,2]
[321901950,1712601040949,-188.42,0.000235,2]
[321901951,1712601040958,-151.41342262,0.00023565,2]
[321901952,1712601040968,-234.37434674,0.00023569,2]
[321901953,1712601040978,-201.3355945,0.00023622,2]
[321901954,1712601040988,-169.53423243,0.00023676,2]
[321901955,1712601040998,-165.36,0.00023676,2]
[321901956,1712601041007,-151.27666646,0.00023692,2]
[321901957,1712601041017,-169.53423243,0.00023713,2]
[321901958,1712601041027,-151.27666646,0.00023727,2]
[321901959,1712601041037,-234.37434674,0.00023844,2]
[321901960,1712601041046,-152.32963548,0.0002387,2]
[321901961,1712601041056,-153.24506347,0.00023901,2]
[321901962,1712601041065,-1832.4071909,0.00023953,2]
[321901963,1712601041075,-1053.70087745,0.00023953,2]
[321901964,1712601041084,-215.91199963,0.00023954,2]
[321901965,1712601041094,-156.73458952,0.00023962,2]
[321901966,1712601041105,-159.29221084,0.00023979,2]
[321901967,1712601041115,-700.77742746,0.00024,2]
[321901968,1712601041125,-169.53423243,0.0002403,2]
[321901969,1712601041135,-4892.6,0.00024083,2]
[321901970,1712601041144,-157.84390401,0.00024088,2]
[321901971,1712601041154,-200.0,0.00024125,2]
[321901972,1712601041163,-215.91199963,0.00024181,2]
[321901973,1712601041175,-234.37434674,0.00024215,2]
[321901974,1712601041185,-635.8,0.00024311,2]
[321901975,1712601041194,-152.32963548,0.00024314,2]
[321901976,1712601041204,-150.54794341,0.00024344,2]
[321901977,1712601041214,-2500.0,0.00024424,2]
[321901978,1712601041223,-215.91199963,0.00024425,2]
[321901979,1712601041232,-638.07636844,0.00024475,2]
[321901980,1712601041241,-234.37434674,0.0002457,2]
[321901981,1712601041253,-171.04,0.00024647,2]
[321901982,1712601041262,-500.0,0.00024657,2]
[321901983,1712601041271,-500.0,0.00024657,2]
[321901984,1712601041281,-500.0,0.00024657,2]
[321901985,1712601041291,-500.0,0.00024657,2]
[321901986,1712601041302,-500.0,0.00024657,2]
[321901987,1712601041311,-250.37072145,0.00024657,2]
[321901988,1712601041322,-2046.49,0.00024657,2]
[321901989,1712601041331,-500.0,0.00024657,2]
[321901990,1712601041340,-582.04,0.00024657,2]
[321901991,1712601041349,-1031.92,0.00024657,2]
[321901992,1712601041358,-693.01,0.00024657,2]
[321901993,1712601041367,-693.01,0.00024657,2]
[321901994,1712601041377,-693.01,0.00024657,2]
[321901995,1712601041386,-500.0,0.00024657,2]
[321901996,1712601041395,-693.01,0.00024657,2]
[321901997,1712601041404,-693.01,0.00024657,2]
[321901998,1712601041414,-1332.48,0.00024657,2]
[321901999,1712601041423,-1162.05,0.00024657,2]
[321902000,1712601041432,-500.0,0.00024657,2]
[321902001,1712601041441,-500.0,0.00024657,2]
[321902002,1712601041451,-1146.0,0.00024657,2]
[321902003,1712601041460,-3355.13,0.00024657,2]
[321902004,1712601041469,-1066.93,0.00024657,2]
[321902005,1712601041478,-500.0,0.00024657,2]
[321902006,1712601041487,-500.0,0.00024657,2]
[321902007,1712601041496,-1874.46,0.00024657,2]
[321902008,1712601041505,-500.0,0.00024657,2]
[321902009,1712601041514,-500.0,0.00024657,2]
[321902010,1712601041524,-500.0,0.00024657,2]
[321902011,1712601041533,-500.0,0.00024657,2]
[321902012,1712601041542,-500.0,0.00024657,2]
[321902013,1712601041551,-500.0,0.00024657,2]
[321902014,1712601041560,-500.0,0.00024657,2]
[321902015,1712601041570,-500.0,0.00024657,2]
[321902016,1712601041579,-2503.14,0.00024657,2]
[321902017,1712601041588,-500.0,0.00024657,2]
[321902018,1712601041598,-500.0,0.00024657,2]
[321902019,1712601041607,-1848.72,0.00024657,2]
[321902020,1712601041617,-500.0,0.00024657,2]
[321902021,1712601041627,-2620.04,0.00024657,2]
[321902022,1712601041636,-1713.66,0.00024657,2]
[321902023,1712601041645,-500.0,0.00024657,2]
[321902024,1712601041655,-500.0,0.00024657,2]
[321902025,1712601041664,-500.0,0.00024657,2]
[321902026,1712601041673,-500.0,0.00024657,2]
[321902027,1712601041682,-675.55,0.00024657,2]
[321902028,1712601041692,-1665.73,0.00024657,2]
[321902029,1712601041701,-587.58,0.00024657,2]
[321902030,1712601041711,-500.0,0.00024657,2]
[321902031,1712601041720,-372.27131141,0.00024657,2]
[321902032,1712601041730,-215.91199963,0.00024693,2]
[321902033,1712601041739,-163.39883742,0.00024705,2]
[321902034,1712601041748,-151.41342262,0.00024707,2]
[321902035,1712601041758,-152.42546696,0.00024717,2]
[321902036,1712601041767,-167.79839733,0.00024758,2]
[321902037,1712601041777,-1832.4071909,0.00024784,2]
[321902038,1712601041786,-1053.70087745,0.00024784,2]
[321902039,1712601041796,-157.84390401,0.00024839,2]
[321902040,1712601041806,-234.37434674,0.00024858,2]
[321902041,1712601041815,-472.0,0.000249,2]
[321902042,1712601041825,-500.0,0.00024931,2]
[321902043,1712601041836,-500.0,0.00024931,2]
[321902044,1712601041845,-500.0,0.00024931,2]
[321902045,1712601041855,-500.0,0.00024931,2]
[321902046,1712601041865,-500.0,0.00024931,2]
[321902047,1712601041876,-2046.49,0.00024931,2]
[321902048,1712601041886,-500.0,0.00024931,2]
[321902049,1712601041895,-582.04,0.00024931,2]
[321902050,1712601041905,-1031.92,0.00024931,2]
[321902051,1712601041915,-500.0,0.00024931,2]
[321902052,1712601041925,-1332.48,0.00024931,2]
[321902053,1712601041935,-1162.05,0.00024931,2]
[321902054,1712601041945,-500.0,0.00024931,2]
[321902055,1712601041954,-500.0,0.00024931,2]
[321902056,1712601041963,-1146.0,0.00024931,2]
[321902057,1712601041972,-3355.13,0.00024931,2]
[321902058,1712601041982,-1066.93,0.00024931,2]
[321902059,1712601041991,-500.0,0.00024931,2]
[321902060,1712601042001,-500.0,0.00024931,2]
[321902061,1712601042010,-1874.46,0.00024931,2]
[321902062,1712601042020,-500.0,0.00024931,2]
[321902063,1712601042030,-500.0,0.00024931,2]
[321902064,1712601042039,-500.0,0.00024931,2]
[321902065,1712601042049,-500.0,0.00024931,2]
[321902066,1712601042060,-500.0,0.00024931,2]
[321902067,1712601042070,-500.0,0.00024931,2]
[321902068,1712601042081,-2503.14,0.00024931,2]
[321902069,1712601042090,-572.10348355,0.00024931,2]
[321902070,1712601042100,-500.0,0.00024931,2]
[321902071,1712601042109,-500.0,0.00024931,2]
[321902072,1712601042119,-1848.72,0.00024931,2]
[321902073,1712601042129,-500.0,0.00024931,2]
[321902074,1712601042138,-2620.04,0.00024931,2]
[321902075,1712601042147,-1713.66,0.00024931,2]
[321902076,1712601042157,-500.0,0.00024931,2]
[321902077,1712601042170,-501.6404196,0.00024931,2]
[321902078,1712601042512,-500.0,0.00024931,2]
[321902079,1712601042540,-500.0,0.00024931,2]
[321902080,1712601042550,-675.55,0.00024931,2]
[321902081,1712601042559,-1665.73,0.00024931,2]
[321902082,1712601042568,-587.58,0.00024931,2]
[321902083,1712601042577,-500.0,0.00024931,2]
[321902084,1712601042588,-2602.89125943,0.00025,2]
[321902085,1712601042597,-151.27666646,0.00025005,2]
[321902086,1712601042606,-155.00001221,0.0002503,2]
[321902087,1712601042615,-189.02724929,0.00025038,2]
[321902088,1712601042626,-152.42546696,0.00025104,2]
[321902089,1712601042636,-215.91199963,0.00025128,2]
[321902090,1712601042645,-169.53423243,0.0002513,2]
[321902091,1712601042655,-500.0,0.00025205,2]
[321902092,1712601042664,-649.7575366,0.00025205,2]
[321902094,1712601042674,-500.0,0.00025205,2]
[321902095,1712601042683,-500.0,0.00025205,2]
[321902096,1712601042693,-500.0,0.00025205,2]
[321902097,1712601042704,-2046.49,0.00025205,2]
[321902098,1712601042714,-522.69264533,0.00025205,2]
[321902099,1712601042724,-582.04,0.00025205,2]
[321902100,1712601042733,-1031.92,0.00025205,2]
[321902101,1712601042742,-500.0,0.00025205,2]
[321902102,1712601042752,-1332.48,0.00025205,2]
[321902103,1712601042761,-1162.05,0.00025205,2]
[321902104,1712601042771,-500.0,0.00025205,2]
[321902105,1712601042780,-504.33187452,0.00025205,2]
[321902106,1712601042789,-1146.0,0.00025205,2]
[321902108,1712601042799,-3355.13,0.00025205,2]
[321902110,1712601042808,-1066.93,0.00025205,2]
[321902111,1712601042818,-500.0,0.00025205,2]
[321902112,1712601042828,-500.0,0.00025205,2]
[321902113,1712601042837,-1874.46,0.00025205,2]
[321902114,1712601042846,-500.0,0.00025205,2]
[321902115,1712601042856,-500.0,0.00025205,2]
[321902117,1712601042865,-521.96954148,0.00025205,2]
[321902119,1712601042876,-500.0,0.00025205,2]
[321902120,1712601042886,-552.97476226,0.00025205,2]
[321902121,1712601042895,-500.0,0.00025205,2]
[321902122,1712601042904,-2503.14,0.00025205,2]
[321902123,1712601042915,-500.0,0.00025205,2]
[321902124,1712601042925,-500.0,0.00025205,2]
[321902125,1712601042936,-1848.72,0.00025205,2]
[321902126,1712601042946,-500.0,0.00025205,2]
[321902127,1712601042955,-2620.04,0.00025205,2]
[321902128,1712601042964,-1713.66,0.00025205,2]
[321902129,1712601042974,-500.0,0.00025205,2]
[321902130,1712601042984,-500.0,0.00025205,2]
[321902131,1712601042993,-500.0,0.00025205,2]
[321902132,1712601043003,-675.55,0.00025205,2]
[321902133,1712601043013,-1665.73,0.00025205,2]
[321902134,1712601043023,-587.58,0.00025205,2]
[321902135,1712601043032,-256.39720419,0.00025205,2]
[321902136,1712601043041,-150.54794341,0.00025275,2]
[321902137,1712601043052,-151.27666646,0.00025293,2]
[321902138,1712601043062,-152.0,0.00025295,3]
[321902139,1712601043072,-167.00107983,0.00025362,2]
[321902140,1712601043081,-500.0,0.00025479,2]
[321902141,1712601043091,-500.0,0.00025479,2]
[321902142,1712601043101,-336.16285358,0.00025479,2]
[321902143,1712601043111,-500.0,0.00025479,2]
[321902144,1712601043122,-2046.49,0.00025479,2]
[321902145,1712601043131,-582.04,0.00025479,2]
[321902146,1712601043140,-1031.92,0.00025479,2]
[321902147,1712601043149,-500.0,0.00025479,2]
[321902148,1712601043160,-1332.48,0.00025479,2]
[321902149,1712601043175,-1162.05,0.00025479,2]
[321902150,1712601043186,-500.0,0.00025479,2]
[321902151,1712601043196,-1146.0,0.00025479,2]
[321902152,1712601043205,-3355.13,0.00025479,2]
[321902153,1712601043215,-1066.93,0.00025479,2]
[321902154,1712601043225,-500.0,0.00025479,2]
[321902155,1712601043235,-500.0,0.00025479,2]
[321902156,1712601043247,-1874.46,0.00025479,2]
[321902157,1712601043256,-500.0,0.00025479,2]
[321902158,1712601043266,-500.0,0.00025479,2]
[321902159,1712601043275,-500.0,0.00025479,2]
[321902160,1712601043286,-500.0,0.00025479,2]
[321902161,1712601043296,-2503.14,0.00025479,2]
[321902162,1712601043306,-500.0,0.00025479,2]
[321902163,1712601043316,-500.0,0.00025479,2]
[321902164,1712601043326,-1848.72,0.00025479,2]
[321902165,1712601043335,-500.0,0.00025479,2]
[321902166,1712601043345,-2620.04,0.00025479,2]
[321902167,1712601043356,-1713.66,0.00025479,2]
[321902168,1712601043366,-500.0,0.00025479,2]
[321902169,1712601043377,-500.0,0.00025479,2]
[321902170,1712601043386,-500.0,0.00025479,2]
[321902171,1712601043395,-675.55,0.00025479,2]
[321902172,1712601043404,-1665.73,0.00025479,2]
[321902173,1712601043414,-268.61256777,0.00025479,2]
[321902178,1712601044017,-318.96743223,0.00025479,2]
[321902179,1712601044027,-152.32963548,0.00025481,2]
[321902180,1712601044037,-152.42546696,0.00025517,2]
[321902181,1712601044046,-156.26573491,0.00025558,2]
[321902182,1712601044055,-157.84390401,0.00025591,2]
[321902183,1712601044065,-189.02724929,0.00025608,2]
[321902184,1712601044074,-1832.4071909,0.00025616,2]
[321902185,1712601044085,-1053.70087745,0.00025616,2]
[321902186,1712601044094,-150.0,0.00025619,4]
[321902187,1712601044103,-154.41582123,0.00025619,4]
[321902188,1712601044112,-185.91050555,0.00025619,4]
[321902189,1712601044121,-259.71627229,0.00025619,4]
[321902190,1712601044130,-169.53423243,0.00025669,2]
[321902191,1712601044140,-500.0,0.00025753,2]
[321902192,1712601044149,-500.0,0.00025753,2]
[321902193,1712601044159,-500.0,0.00025753,2]
[321902194,1712601044168,-2046.49,0.00025753,2]
[321902195,1712601044181,-582.04,0.00025753,2]
[321902196,1712601044190,-1031.92,0.00025753,2]
[321902197,1712601044199,-500.0,0.00025753,2]
[321902198,1712601044209,-1332.48,0.00025753,2]
[321902199,1712601044218,-1162.05,0.00025753,2]
[321902200,1712601044227,-500.0,0.00025753,2]
[321902201,1712601044237,-1146.0,0.00025753,2]
[321902202,1712601044246,-3355.13,0.00025753,2]
[321902203,1712601044257,-1066.93,0.00025753,2]
[321902204,1712601044267,-413.03979962,0.00025753,2]
[321902205,1712601044276,-411.89758165,0.00025753,2]
[321902206,1712601044305,-88.10241835,0.00025753,2]
[321902207,1712601044314,-1350.73725341,0.00025753,2]
[321902208,1712601044325,-523.72274659,0.00025753,2]
[321902209,1712601044335,-500.0,0.00025753,2]
[321902210,1712601044345,-500.0,0.00025753,2]
[321902211,1712601044353,-479.51396179,0.00025753,2]
[321902212,1712601044365,-20.48603821,0.00025753,2]
[321902213,1712601044374,-500.0,0.00025753,2]
[321902214,1712601044383,-1019.97702727,0.00025753,2]
[321902215,1712601044411,-1483.16297273,0.00025753,2]
[321902216,1712601044420,-500.0,0.00025753,2]
[321902217,1712601044429,-500.0,0.00025753,2]
[321902218,1712601044439,-1211.88838113,0.00025753,2]
[321902219,1712601044455,-636.83161887,0.00025753,2]
[321902220,1712601044464,-500.0,0.00025753,2]
[321902221,1712601044474,-1149.03502378,0.00025753,2]
[321902222,1712601045501,-500.0,0.00024657,2]
[321902223,1712601045510,-500.0,0.00024657,2]
[321902224,1712601045520,-500.0,0.00024931,2]
[321902225,1712601045529,-500.0,0.00024931,2]
[321902226,1712601045539,-480.20239668,0.00025205,2]
[321902227,1712601045550,-19.79760332,0.00025205,2]
[321902228,1712601045560,-543.38529113,0.00025479,2]
[321902229,1712601045570,-1212.75122754,0.00025753,2]
[321902230,1712601045614,-258.25374868,0.00025753,2]
[321902231,1712601045624,-1713.66,0.00025753,2]
[321902232,1712601045633,-500.0,0.00025753,2]
[321902233,1712601045642,-412.56369132,0.00025753,2]
[321902234,1712601045654,-87.43630868,0.00025753,2]
[321902235,1712601045662,-500.0,0.00025753,2]
[321902236,1712601045671,-66.58369132,0.00025753,2]
[321902237,1712601045690,-608.96630868,0.00025753,2]
[321902238,1712601045701,-1665.73,0.00025753,2]
[321902239,1712601045711,-587.58,0.00025753,2]
[321902240,1712601045721,-234.37434674,0.00025798,2]
[321902242,1712601045730,-1944.0,0.00025805,2]
[321902243,1712601045739,-215.91199963,0.00025808,2]
[321902244,1712601045749,-3155.84658012,0.00025834,2]
[321902245,1712601045758,-1200.0,0.0002584,2]
[321902246,1712601045767,-500.0,0.0002584,2]
[321902247,1712601045777,-700.0,0.0002584,2]
[321902248,1712601045787,-800.0,0.0002589,2]
[321902250,1712601045796,-693.01,0.00025961,2]
[321902251,1712601045805,-215.91199963,0.00025966,2]
[321902252,1712601045814,-1500.0,0.00026027,2]
[321902253,1712601045823,-500.0,0.00026027,2]
[321902254,1712601045832,-500.0,0.00026027,2]
[321902255,1712601045841,-500.0,0.00026027,2]
[321902256,1712601045850,-2046.49,0.00026027,2]
[321902257,1712601045859,-582.04,0.00026027,2]
[321902258,1712601045869,-1031.92,0.00026027,2]
[321902259,1712601045878,-500.0,0.00026027,2]
[321902260,1712601045887,-1332.48,0.00026027,2]
[321902261,1712601045897,-1162.05,0.00026027,2]
[321902262,1712601045906,-500.0,0.00026027,2]
[321902263,1712601045915,-1146.0,0.00026027,2]
[321902264,1712601045925,-3355.13,0.00026027,2]
[321902265,1712601045934,-1066.93,0.00026027,2]
[321902266,1712601045943,-500.0,0.00026027,2]
[321902267,1712601045952,-1874.46,0.00026027,2]
[321902268,1712601045961,-500.0,0.00026027,2]
[321902269,1712601045970,-643.07719137,0.00026027,2]
[321902270,1712601045979,-500.0,0.00026027,2]
[321902271,1712601045988,-500.0,0.00026027,2]
[321902272,1712601045997,-2503.14,0.00026027,2]
[321902273,1712601046007,-500.0,0.00026027,2]
[321902274,1712601046016,-500.0,0.00026027,2]
[321902275,1712601046025,-1848.72,0.00026027,2]
[321902276,1712601046035,-500.0,0.00026027,2]
[321902277,1712601046044,-2620.04,0.00026027,2]
[321902278,1712601046053,-1713.66,0.00026027,2]
[321902279,1712601046062,-500.0,0.00026027,2]
[321902280,1712601046071,-564.57357397,0.00026027,2]
[321902281,1712601046080,-500.0,0.00026027,2]
[321902282,1712601046090,-675.55,0.00026027,2]
[321902283,1712601046099,-1665.73,0.00026027,2]
[321902284,1712601046108,-587.58,0.00026027,2]
[321902285,1712601046117,-150.54794341,0.00026076,2]
[321902286,1712601046126,-1500.0,0.00026106,2]
[321902287,1712601046135,-151.41342262,0.00026184,2]
[321902288,1712601046144,-215.91199963,0.00026218,2]
[321902289,1712601046154,-215.91199963,0.00026222,2]
[321902290,1712601046163,-152.42546696,0.00026289,2]
[321902291,1712601046176,-500.0,0.00026301,2]
[321902292,1712601046185,-500.0,0.00026301,2]
[321902293,1712601046194,-500.0,0.00026301,2]
[321902294,1712601046203,-2046.49,0.00026301,2]
[321902295,1712601046212,-582.04,0.00026301,2]
[321902296,1712601046222,-1031.92,0.00026301,2]
[321902297,1712601046231,-500.0,0.00026301,2]
[321902298,1712601046240,-1332.48,0.00026301,2]
[321902299,1712601046250,-1162.05,0.00026301,2]
[321902300,1712601046259,-195.83489944,0.00026301,2]
[321902301,1712601046269,-1146.0,0.00026301,2]
[321902302,1712601046278,-3355.13,0.00026301,2]
[321902303,1712601046287,-1066.93,0.00026301,2]
[321902304,1712601046296,-500.0,0.00026301,2]
[321902305,1712601046305,-1874.46,0.00026301,2]
[321902306,1712601046314,-500.0,0.00026301,2]
[321902307,1712601046323,-500.0,0.00026301,2]
[321902308,1712601046332,-500.0,0.00026301,2]
[321902309,1712601046341,-2503.14,0.00026301,2]
[321902310,1712601046351,-500.0,0.00026301,2]
[321902311,1712601046360,-500.0,0.00026301,2]
[321902312,1712601046369,-1848.72,0.00026301,2]
[321902313,1712601046379,-500.0,0.00026301,2]
[321902314,1712601046388,-2620.04,0.00026301,2]
[321902315,1712601046397,-1713.66,0.00026301,2]
[321902316,1712601046407,-610.6,0.00026301,2]
[321902317,1712601046416,-500.0,0.00026301,2]
[321902318,1712601046425,-675.55,0.00026301,2]
[321902319,1712601046435,-1665.73,0.00026301,2]
[321902320,1712601046444,-587.58,0.00026301,2]
[321902321,1712601046454,-157.84390401,0.00026342,2]
[321902322,1712601046464,-1500.0,0.0002635,2]
[321902323,1712601046474,-156.73458952,0.00026379,2]
[321902324,1712601046483,-6682.39,0.00026387,2]
[321902325,1712601046492,-500.0,0.00026387,2]
[321902326,1712601046502,-26595.78,0.00026387,2]
[321902327,1712601046512,-2719.97,0.00026387,2]
[321902328,1712601046523,-6388.82,0.00026387,2]
[321902329,1712601046532,-10193.41,0.00026387,2]
[321902330,1712601046543,-500.0,0.00026387,2]
[321902331,1712601046552,-4568.66,0.00026387,2]
[321902332,1712601046563,-5095.18,0.00026387,2]
[321902333,1712601046573,-4855.61,0.00026387,2]
[321902334,1712601046582,-2745.63,0.00026387,2]
[321902336,1712601046592,-500.0,0.00026387,2]
[321902338,1712601046603,-4890.28,0.00026387,2]
[321902339,1712601046613,-500.0,0.00026387,2]
[321902340,1712601046624,-552.04,0.00026387,2]
[321902341,1712601046634,-11242.67,0.00026387,2]
[321902342,1712601046643,-491.39895019,0.00026387,2]
[321902343,1712601046652,-1373.57,0.00026387,2]
[321902344,1712601046661,-2559.82,0.00026387,2]
[321902345,1712601046670,-500.0,0.00026387,2]
[321902347,1712601046679,-158.7234166,0.00026387,2]
[321902349,1712601046688,-604.98,0.00026387,2]
[321902351,1712601046697,-500.0,0.00026387,2]
[321902353,1712601046707,-500.0,0.00026387,2]
[321902355,1712601046716,-5541.45,0.00026387,2]
[321902357,1712601046729,-500.0,0.00026387,2]
[321902359,1712601046741,-500.0,0.00026387,2]
[321902361,1712601046751,-500.0,0.00026387,2]
[321902363,1712601046760,-2781.54,0.00026387,2]
[321902365,1712601046770,-500.0,0.00026387,2]
[321902366,1712601046779,-203.65062386,0.00026387,2]
[321902369,1712601046788,-500.0,0.00026387,2]
[321902371,1712601046798,-267.30532657,0.00026387,2]
[321902372,1712601046807,-500.0,0.00026387,2]
[321902375,1712601046816,-500.0,0.00026387,2]
[321902376,1712601046825,-500.0,0.00026387,2]
[321902378,1712601046834,-1200.0,0.00026388,2]
[321902380,1712601046844,-700.0,0.00026388,2]
[321902382,1712601046859,-1500.0,0.00026391,2]
[321902384,1712601046868,-1500.0,0.00026395,2]
[321902386,1712601046882,-153.80423253,0.00026403,2]
[321902389,1712601046892,-1500.0,0.00026422,2]
[321902390,1712601046902,-1832.4071909,0.00026447,2]